lending/lending_fUSD_20241120
["ID","MTS","AMOUNT","RATE_DAILY","PERIOD"]
[342739059,1732090335313,-500.0,0.00058904,120]
[342739060,1732090335323,-500.0,0.00058904,120]
[342739061,1732090335332,-946.93,0.00058904,120]
[342739062,1732090335343,-667.95,0.00058904,120]
[342739063,1732090335353,-500.0,0.00058904,120]
[342739064,1732090335363,-500.0,0.00058904,120]
[342739065,1732090335373,-500.0,0.00058904,120]
[342739066,1732090335383,-277.77412292,0.00058904,120]
[342739067,1732090335396,-1322.0,0.00058919,30]
[342739068,1732090335407,-2400.0,0.00058928,120]
[342739069,1732090335419,-1100.0,0.00058928,120]
[342739070,1732090335430,-500.0,0.00058989,120]
[342739071,1732090335440,-501.88405957,0.00058989,120]
[342739072,1732090335452,-7869.08,0.00059,120]
[342739073,1732090335463,-1000.0,0.00059,120]
[342739074,1732090335473,-2997.22602505,0.00059,120]
[342739075,1732090335483,-800.0,0.00059,2]
[342739076,1732090335493,-15573.0,0.00059,120]
[342739077,1732090335503,-15573.0,0.00059,120]
[342739078,1732090335512,-15573.0,0.00059,120]
[342739079,1732090335522,-500.0,0.00059178,120]
[342739080,1732090335531,-583.63,0.00059178,120]
[342739081,1732090335541,-500.0,0.00059178,120]
[342739082,1732090335551,-1068.5,0.00059178,120]
[342739083,1732090335560,-598.94,0.00059178,120]
[342739084,1732090335570,-1682.29,0.00059178,120]
[342739085,1732090335579,-500.0,0.00059178,120]
[342739086,1732090335590,-12247.35,0.00059178,120]
[342739087,1732090335600,-1420.1,0.00059178,120]
[342739088,1732090335609,-500.0,0.00059178,120]
[342739089,1732090335619,-1292.82,0.00059178,120]
[342739090,1732090335629,-1329.44,0.00059178,120]
[342739091,1732090335638,-212.3703948,0.00059178,120]
[342739092,1732090335648,-1607.8,0.00059178,120]
[342739093,1732090335657,-500.0,0.00059178,120]
[342739094,1732090335667,-1376.52,0.00059178,120]
[342739095,1732090335677,-500.0,0.00059178,120]
[342739096,1732090335686,-500.0,0.00059178,120]
[342739097,1732090335696,-742.7,0.00059178,20]
[342739098,1732090335706,-843.95,0.00059178,120]
[342739099,1732090335715,-1244.57,0.00059178,120]
[342739100,1732090335725,-1316.06,0.00059178,120]
[342739101,1732090335966,-553.01,0.00059178,120]
[342739102,1732090335980,-500.0,0.00059178,120]
[342739103,1732090335989,-721.45,0.00059178,120]
[342739104,1732090335998,-2365.65,0.00059178,120]
[342739105,1732090336007,-526.18,0.00059178,120]
[342739106,1732090336017,-1140.86,0.00059178,120]
[342739107,1732090336026,-1206.39,0.00059178,120]
[342739108,1732090336035,-851.18,0.00059178,120]
[342739109,1732090336046,-811.24,0.00059178,21]
[342739110,1732090336055,-511.66,0.00059178,120]
[342739111,1732090336064,-500.0,0.00059178,120]
[342739112,1732090336073,-500.0,0.00059178,120]
[342739113,1732090336082,-1177.91,0.00059178,120]
[342739114,1732090336091,-500.0,0.00059178,120]
[342739115,1732090336100,-3911.81,0.00059178,120]
[342739116,1732090336109,-7513.0,0.00059178,3]
[342739117,1732090336118,-810.73,0.00059178,120]
[342739118,1732090336128,-618.5,0.00059178,120]
[342739119,1732090336137,-500.0,0.00059178,120]
[342739120,1732090336147,-476.84485292,0.00059178,21]
[342739121,1732090336156,-531.91,0.00059178,60]
[342739122,1732090336165,-703.55,0.00059178,120]
[342739123,1732090336175,-578.53,0.00059178,120]
[342739124,1732090336184,-500.0,0.00059178,120]
[342739125,1732090336193,-1133.36,0.00059178,120]
[342739126,1732090336202,-500.0,0.00059178,120]
[342739127,1732090336212,-646.34,0.00059178,7]
[342739128,1732090336221,-500.0,0.00059178,120]
[342739129,1732090336230,-1092.33,0.00059178,120]
[342739130,1732090336240,-576.16,0.00059178,120]
[342739131,1732090336250,-642.09,0.00059178,3]
[342739132,1732090336259,-1126.69,0.00059178,120]
[342739133,1732090336268,-705.53,0.00059178,120]
[342739134,1732090336277,-500.0,0.00059178,120]
[342739135,1732090336287,-1013.55,0.00059178,120]
[342739136,1732090336297,-1520.14,0.00059178,120]
[342739137,1732090336310,-500.0,0.00059178,120]
[342739138,1732090336320,-500.0,0.00059178,120]
[342739139,1732090336329,-500.0,0.00059178,120]
[342739140,1732090336338,-500.0,0.00059178,21]
[342739141,1732090336347,-2168.51,0.00059178,120]
[342739142,1732090336357,-500.0,0.00059178,120]
[342739143,1732090336367,-500.0,0.00059178,120]
[342739144,1732090336376,-500.0,0.00059178,120]
[342739145,1732090336387,-500.0,0.00059178,120]
[342739146,1732090336396,-500.0,0.00059178,120]
[342739147,1732090336406,-594.32,0.00059178,120]
[342739148,1732090336416,-500.0,0.00059178,120]
[342739149,1732090336425,-709.11,0.00059178,120]
[342739150,1732090336435,-511.99,0.00059178,120]
[342739151,1732090336444,-702.33,0.00059178,120]
[342739152,1732090336454,-500.0,0.00059178,120]
[342739153,1732090336464,-500.0,0.00059178,120]
[342739154,1732090336474,-500.0,0.00059178,120]
[342739155,1732090336485,-797.68,0.00059178,120]
[342739156,1732090336494,-500.0,0.00059178,120]
[342739157,1732090336504,-500.0,0.00059178,120]
[342739158,1732090336513,-500.0,0.00059178,120]
[342739159,1732090336522,-500.0,0.00059178,120]
[342739160,1732090336531,-500.0,0.00059178,120]
[342739161,1732090336541,-245.23339534,0.00059178,120]
[342739162,1732090336553,-150.0,0.00059178,120]
[342739163,1732090336562,-500.0,0.00059178,120]
[342739164,1732090336572,-500.0,0.00059178,120]
[342739165,1732090336581,-514.31,0.00059178,120]
[342739166,1732090336591,-500.0,0.00059178,120]
[342739167,1732090336600,-500.0,0.00059178,120]
[342739168,1732090336609,-500.0,0.00059178,120]
[342739169,1732090336619,-849.65,0.00059178,120]
[342739170,1732090336628,-336.56996777,0.00059178,120]
[342739171,1732090336638,-569.0,0.00059178,120]
[342739172,1732090336647,-500.0,0.00059178,120]
[342739173,1732090336656,-700.75,0.00059178,120]
[342739174,1732090336665,-2068.02,0.00059178,120]
[342739175,1732090336674,-798.52,0.00059178,120]
[342739176,1732090336683,-1516.88,0.00059178,120]
[342739177,1732090336692,-1000.0,0.00059178,120]
[342739178,1732090336701,-982.26,0.00059178,120]
[342739179,1732090336711,-500.0,0.00059178,120]
[342739180,1732090336720,-500.0,0.00059178,120]
[342739181,1732090336729,-650.76,0.00059178,21]
[342739182,1732090336738,-500.0,0.00059178,120]
[342739183,1732090336748,-998.06,0.00059178,120]
[342739184,1732090336757,-2581.57,0.00059178,120]
[342739185,1732090336766,-635.36,0.00059178,120]
[342739186,1732090336775,-2031.6,0.00059178,120]
[342739187,1732090336785,-500.0,0.00059178,120]
[342739188,1732090336798,-500.0,0.00059178,120]
[342739189,1732090336807,-3206.56,0.00059178,120]
[342739190,1732090336817,-711.44,0.00059178,120]
[342739191,1732090336827,-729.82,0.00059178,120]
[342739192,1732090336836,-5192.93,0.00059178,120]
[342739193,1732090336846,-500.0,0.00059178,120]
[342739194,1732090336855,-707.74,0.00059178,120]
[342739195,1732090336866,-647.87,0.00059178,120]
[342739196,1732090336875,-500.0,0.00059178,120]
[342739197,1732090336885,-720.2,0.00059178,120]
[342739198,1732090336894,-717.59,0.00059178,120]
[342739199,1732090336903,-556.67190128,0.00059178,120]
[342739200,1732090336913,-1703.66,0.00059178,120]
[342739201,1732090336922,-508.31,0.00059178,120]
[342739202,1732090336932,-2604.2,0.00059178,120]
[342739203,1732090336941,-2810.53,0.00059178,120]
[342739204,1732090336951,-500.0,0.00059178,120]
[342739205,1732090336961,-2080.78,0.00059178,120]
[342739206,1732090336970,-500.22,0.00059178,120]
[342739207,1732090336980,-1137.2,0.00059178,3]
[342739208,1732090336990,-642.24,0.00059178,30]
[342739209,1732090336999,-1301.4,0.00059178,120]
[342739210,1732090337008,-505.72,0.00059178,120]
[342739211,1732090337018,-500.0,0.00059178,120]
[342739212,1732090337027,-500.0,0.00059178,120]
[342739213,1732090337036,-946.93,0.00059178,120]
[342739214,1732090337048,-667.95,0.00059178,120]
[342739215,1732090337059,-500.0,0.00059178,120]
[342739216,1732090337068,-500.0,0.00059178,120]
[342739217,1732090337077,-500.0,0.00059202,120]
[342739218,1732090337087,-1200.0,0.00059202,120]
[342739219,1732090337096,-500.0,0.00059263,120]
[342739220,1732090337106,-204.0,0.0005941,120]
[342739221,1732090337116,-201.0,0.0005941,120]
[342739222,1732090337128,-500.0,0.00059452,120]
[342739223,1732090337138,-583.63,0.00059452,120]
[342739224,1732090337148,-406.76765315,0.00059452,120]
[342739225,1732090337157,-1068.5,0.00059452,120]
[342739226,1732090337166,-598.94,0.00059452,120]
[342739227,1732090337175,-1682.29,0.00059452,120]
[342739228,1732090337184,-500.0,0.00059452,120]
[342739229,1732090337193,-12247.35,0.00059452,120]
[342739230,1732090337207,-1420.1,0.00059452,120]
[342739231,1732090337215,-500.0,0.00059452,120]
[342739232,1732090337225,-1292.82,0.00059452,120]
[342739233,1732090337234,-1329.44,0.00059452,120]
[342739234,1732090337244,-1607.8,0.00059452,120]
[342739235,1732090337253,-500.0,0.00059452,120]
[342739236,1732090337262,-1376.52,0.00059452,120]
[342739237,1732090337271,-259.2,0.00059452,120]
[342739238,1732090337280,-588.68,0.00059452,120]
[342739239,1732090337289,-742.7,0.00059452,20]
[342739240,1732090337302,-843.95,0.00059452,120]
[342739241,1732090337312,-1244.57,0.00059452,120]
[342739242,1732090337322,-1316.06,0.00059452,120]
[342739243,1732090337331,-553.01,0.00059452,120]
[342739244,1732090337341,-363.06,0.00059452,120]
[342739245,1732090337351,-721.45,0.00059452,120]
[342739246,1732090337360,-2365.65,0.00059452,120]
[342739247,1732090337369,-526.18,0.00059452,120]
[342739248,1732090337381,-1140.86,0.00059452,120]
[342739249,1732090337392,-1206.39,0.00059452,120]
[342739250,1732090337402,-851.18,0.00059452,120]
[342739251,1732090337412,-811.24,0.00059452,21]
[342739252,1732090337421,-500.0,0.00059452,120]
[342739253,1732090337430,-500.0,0.00059452,120]
[342739254,1732090337439,-1177.91,0.00059452,120]
[342739255,1732090337448,-500.0,0.00059452,120]
[342739256,1732090337458,-3911.81,0.00059452,120]
[342739257,1732090337468,-7513.0,0.00059452,3]
[342739258,1732090337477,-810.73,0.00059452,120]
[342739259,1732090337488,-500.0,0.00059452,120]
[342739260,1732090337497,-618.5,0.00059452,120]
[342739261,1732090337506,-531.91,0.00059452,60]
[342739262,1732090337516,-703.55,0.00059452,120]
[342739263,1732090337525,-578.53,0.00059452,120]
[342739264,1732090337534,-500.0,0.00059452,120]
[342739265,1732090337544,-1133.36,0.00059452,120]
[342739266,1732090337553,-500.0,0.00059452,120]
[342739267,1732090337562,-646.34,0.00059452,7]
[342739268,1732090337571,-500.0,0.00059452,120]
[342739269,1732090337580,-1092.33,0.00059452,120]
[342739270,1732090337590,-576.16,0.00059452,120]
[342739271,1732090337599,-642.09,0.00059452,3]
[342739272,1732090337608,-1126.69,0.00059452,120]
[342739273,1732090337617,-705.53,0.00059452,120]
[342739274,1732090337626,-500.0,0.00059452,120]
[342739275,1732090337635,-1013.55,0.00059452,120]
[342739276,1732090337644,-1520.14,0.00059452,120]
[342739277,1732090337653,-500.0,0.00059452,120]
[342739278,1732090337663,-500.0,0.00059452,120]
[342739279,1732090337672,-521.15,0.00059452,120]
[342739280,1732090337681,-423.66,0.00059452,21]
[342739281,1732090337690,-2168.51,0.00059452,120]
[342739282,1732090337700,-500.0,0.00059452,120]
[342739283,1732090337709,-500.0,0.00059452,120]
[342739284,1732090337718,-500.0,0.00059452,120]
[342739285,1732090337727,-500.0,0.00059452,120]
[342739286,1732090337736,-594.32,0.00059452,120]
[342739287,1732090337746,-500.0,0.00059452,120]
[342739288,1732090337754,-500.0,0.00059452,120]
[342739289,1732090337763,-709.11,0.00059452,120]
[342739290,1732090337772,-511.99,0.00059452,120]
[342739291,1732090337781,-702.33,0.00059452,120]
[342739292,1732090337791,-522.75108314,0.00059452,120]
[342739293,1732090337801,-500.0,0.00059452,120]
[342739294,1732090337811,-500.0,0.00059452,120]
[342739295,1732090337820,-797.68,0.00059452,120]
[342739296,1732090337830,-500.0,0.00059452,120]
[342739297,1732090337839,-507.61811117,0.00059452,120]
[342739298,1732090337848,-500.0,0.00059452,120]
[342739299,1732090337858,-500.0,0.00059452,120]
[342739300,1732090337867,-500.0,0.00059452,120]
[342739301,1732090337877,-150.0,0.00059452,120]
[342739302,1732090337886,-500.0,0.00059452,120]
[342739303,1732090337896,-500.0,0.00059452,120]
[342739304,1732090337905,-514.31,0.00059452,120]
[342739305,1732090337915,-628.58,0.00059452,120]
[342739306,1732090337925,-500.0,0.00059452,120]
[342739307,1732090337935,-500.0,0.00059452,120]
[342739308,1732090337944,-849.65,0.00059452,120]
[342739309,1732090337954,-569.0,0.00059452,120]
[342739310,1732090337964,-500.0,0.00059452,120]
[342739311,1732090337973,-700.75,0.00059452,120]
[342739312,1732090337982,-2068.02,0.00059452,120]
[342739313,1732090337992,-798.52,0.00059452,120]
[342739314,1732090338001,-1516.88,0.00059452,120]
[342739315,1732090338011,-1000.0,0.00059452,120]
[342739316,1732090338021,-982.26,0.00059452,120]
[342739317,1732090338031,-500.0,0.00059452,120]
[342739318,1732090338040,-500.0,0.00059452,120]
[342739319,1732090338051,-650.76,0.00059452,21]
[342739320,1732090338061,-500.0,0.00059452,120]
[342739321,1732090338071,-998.06,0.00059452,120]
[342739322,1732090338081,-2581.57,0.00059452,120]
[342739323,1732090338091,-635.36,0.00059452,120]
[342739324,1732090338100,-2031.6,0.00059452,120]
[342739325,1732090338110,-500.0,0.00059452,120]
[342739326,1732090338119,-500.0,0.00059452,120]
[342739327,1732090338128,-3206.56,0.00059452,120]
[342739328,1732090338138,-711.44,0.00059452,120]
[342739329,1732090338147,-729.82,0.00059452,120]
[342739330,1732090338157,-5192.93,0.00059452,120]
[342739331,1732090338170,-500.0,0.00059452,120]
[342739332,1732090338185,-707.74,0.00059452,120]
[342739333,1732090338199,-647.87,0.00059452,120]
[342739334,1732090338210,-500.0,0.00059452,120]
[342739335,1732090338225,-720.2,0.00059452,120]
[342739336,1732090338239,-717.59,0.00059452,120]
[342739337,1732090338254,-1703.66,0.00059452,120]
[342739338,1732090338268,-508.31,0.00059452,120]
[342739339,1732090338281,-2604.2,0.00059452,120]
[342739340,1732090338292,-2810.53,0.00059452,120]
[342739341,1732090338314,-500.0,0.00059452,120]
[342739342,1732090338333,-2080.78,0.00059452,120]
[342739343,1732090338348,-500.22,0.00059452,120]
[342739344,1732090338363,-1137.2,0.00059452,3]
[342739345,1732090338379,-642.24,0.00059452,30]
[342739346,1732090338395,-1301.4,0.00059452,120]
[342739347,1732090338409,-505.72,0.00059452,120]
[342739348,1732090338424,-500.0,0.00059452,120]
[342739349,1732090338437,-500.0,0.00059452,120]
[342739350,1732090338450,-946.93,0.00059452,120]
[342739351,1732090338465,-667.95,0.00059452,120]
[342739352,1732090338478,-500.0,0.00059452,120]
[342739353,1732090338490,-500.0,0.00059452,120]
[342739354,1732090338502,-2400.0,0.00059476,120]
[342739355,1732090338518,-1100.0,0.00059476,120]
[342739356,1732090338528,-1200.0,0.00059476,120]
[342739357,1732090338539,-1322.0,0.00059497,30]
[342739358,1732090338555,-2018.0,0.00059527,2]
[342739359,1732090338568,-504.81571311,0.00059536,120]
[342739360,1732090338580,-201.0,0.000597,30]
[342739361,1732090338592,-204.0,0.000597,30]
[342739362,1732090338604,-214.0,0.000597,120]
[342739363,1732090338617,-1000.0,0.00059725,120]
[342739364,1732090338629,-500.0,0.00059726,120]
[342739365,1732090338641,-583.63,0.00059726,120]
[342739366,1732090338654,-1068.5,0.00059726,120]
[342739367,1732090338667,-598.94,0.00059726,120]
[342739368,1732090338680,-1682.29,0.00059726,120]
[342739369,1732090338693,-500.0,0.00059726,120]
[342739370,1732090338707,-12247.35,0.00059726,120]
[342739371,1732090338720,-1420.1,0.00059726,120]
[342739372,1732090338732,-500.0,0.00059726,120]
[342739373,1732090338744,-1292.82,0.00059726,120]
[342739374,1732090338757,-1329.44,0.00059726,120]
[342739375,1732090338770,-1607.8,0.00059726,120]
[342739376,1732090338782,-500.0,0.00059726,120]
[342739377,1732090338796,-1376.52,0.00059726,120]
[342739378,1732090338808,-742.7,0.00059726,20]
[342739379,1732090338820,-843.95,0.00059726,120]
[342739380,1732090338832,-1244.57,0.00059726,120]
[342739381,1732090338845,-1316.06,0.00059726,120]
[342739382,1732090338858,-553.01,0.00059726,120]
[342739383,1732090338871,-721.45,0.00059726,120]
[342739384,1732090338883,-2365.65,0.00059726,120]
[342739385,1732090338895,-526.18,0.00059726,120]
[342739386,1732090338909,-1140.86,0.00059726,120]
[342739387,1732090338921,-1206.39,0.00059726,120]
[342739388,1732090338934,-851.18,0.00059726,120]
[342739389,1732090338947,-811.24,0.00059726,21]
[342739390,1732090338960,-500.0,0.00059726,120]
[342739391,1732090338974,-500.0,0.00059726,120]
[342739392,1732090338986,-1177.91,0.00059726,120]
[342739393,1732090338999,-644.53,0.00059726,120]
[342739394,1732090339012,-3911.81,0.00059726,120]
[342739395,1732090339025,-7513.0,0.00059726,3]
[342739396,1732090339037,-810.73,0.00059726,120]
[342739397,1732090339052,-472.3,0.00059726,120]
[342739398,1732090339066,-618.5,0.00059726,120]
[342739399,1732090339080,-531.91,0.00059726,60]
[342739400,1732090339093,-703.55,0.00059726,120]
[342739401,1732090339107,-578.53,0.00059726,120]
[342739402,1732090339120,-500.0,0.00059726,120]
[342739403,1732090339133,-1133.36,0.00059726,120]
[342739404,1732090339145,-500.0,0.00059726,120]
[342739405,1732090339158,-646.34,0.00059726,7]
[342739406,1732090339171,-500.0,0.00059726,120]
[342739407,1732090339183,-1092.33,0.00059726,120]
[342739408,1732090339196,-576.16,0.00059726,120]
[342739409,1732090339208,-642.09,0.00059726,3]
[342739410,1732090339220,-1126.69,0.00059726,120]
[342739411,1732090339232,-705.53,0.00059726,120]
[342739412,1732090339244,-428.16,0.00059726,120]
[342739413,1732090339256,-1013.55,0.00059726,120]
[342739414,1732090339267,-1520.14,0.00059726,120]
[342739415,1732090339279,-500.0,0.00059726,120]
[342739416,1732090339291,-500.0,0.00059726,120]
[342739417,1732090339308,-2168.51,0.00059726,120]
[342739418,1732090339320,-500.0,0.00059726,120]
[342739419,1732090339332,-500.0,0.00059726,120]
[342739420,1732090339345,-500.0,0.00059726,120]
[342739421,1732090339357,-189.98,0.00059726,120]
[342739422,1732090339369,-594.32,0.00059726,120]
[342739423,1732090339383,-500.0,0.00059726,120]
[342739424,1732090339396,-500.0,0.00059726,120]
[342739425,1732090339408,-709.11,0.00059726,120]
[342739426,1732090339417,-511.99,0.00059726,120]
[342739427,1732090339426,-702.33,0.00059726,120]
[342739428,1732090339435,-500.0,0.00059726,120]
[342739429,1732090339444,-500.0,0.00059726,120]
[342739430,1732090339454,-797.68,0.00059726,120]
[342739431,1732090339463,-500.0,0.00059726,120]
[342739432,1732090339473,-500.0,0.00059726,120]
[342739433,1732090339482,-598.84,0.00059726,120]
[342739434,1732090339492,-609.41,0.00059726,120]
[342739435,1732090339501,-261.4,0.00059726,120]
[342739436,1732090339511,-221.66,0.00059726,120]
[342739437,1732090339520,-500.0,0.00059726,120]
[342739438,1732090339530,-514.31,0.00059726,120]
[342739439,1732090339541,-472.63907211,0.00059726,120]
[342739440,1732090339553,-211.61350895,0.00059726,120]
[342739441,1732090339562,-500.0,0.00059726,120]
[342739442,1732090339572,-849.65,0.00059726,120]
[342739443,1732090339581,-569.0,0.00059726,120]
[342739444,1732090339590,-500.0,0.00059726,120]
[342739445,1732090339600,-700.75,0.00059726,120]
[342739446,1732090339610,-2068.02,0.00059726,120]
[342739447,1732090339620,-798.52,0.00059726,120]
[342739448,1732090339629,-1516.88,0.00059726,120]
[342739449,1732090339639,-495.67216149,0.00059726,120]
[342739450,1732090339649,-982.26,0.00059726,120]
[342739451,1732090339658,-500.0,0.00059726,120]
[342739452,1732090339668,-500.0,0.00059726,120]
[342739453,1732090339677,-650.76,0.00059726,21]
[342739454,1732090339687,-500.0,0.00059726,120]
[342739455,1732090339697,-998.06,0.00059726,120]
[342739456,1732090339706,-2581.57,0.00059726,120]
[342739457,1732090339715,-635.36,0.00059726,120]
[342739458,1732090339724,-2031.6,0.00059726,120]
[342739459,1732090339734,-500.0,0.00059726,120]
[342739460,1732090339744,-500.0,0.00059726,120]
[342739461,1732090339754,-3206.56,0.00059726,120]
[342739462,1732090339763,-711.44,0.00059726,120]
[342739463,1732090339773,-729.82,0.00059726,120]
[342739464,1732090339782,-5192.93,0.00059726,120]
[342739465,1732090339792,-477.16953103,0.00059726,120]
[342739466,1732090339803,-707.74,0.00059726,120]
[342739467,1732090339812,-647.87,0.00059726,120]
[342739468,1732090339822,-500.0,0.00059726,120]
[342739469,1732090339832,-720.2,0.00059726,120]
[342739470,1732090339842,-717.59,0.00059726,120]
[342739471,1732090339851,-1703.66,0.00059726,120]
[342739472,1732090339860,-508.31,0.00059726,120]
[342739473,1732090339870,-500.0,0.00059726,120]
[342739474,1732090339879,-2604.2,0.00059726,120]
[342739475,1732090339889,-150.0,0.00059726,2]
[342739476,1732090339898,-500.0,0.00059726,120]
[342739477,1732090339908,-2810.53,0.00059726,120]
[342739478,1732090339918,-255.08567863,0.00059726,120]
[342739479,1732090339927,-2080.78,0.00059726,120]
[342739480,1732090339937,-992.5800886,0.00059726,120]
[342739481,1732090339946,-150.0,0.00059726,2]
[342739482,1732090339956,-500.0,0.00059726,120]
[342739483,1732090339965,-150.0,0.00059726,2]
[342739484,1732090339974,-500.22,0.00059726,120]
[342739485,1732090339984,-500.0,0.00059726,120]
[342739486,1732090339993,-150.0,0.00059726,2]
[342739487,1732090340003,-1523.0,0.00059726,120]
[342739488,1732090340013,-1137.2,0.00059726,3]
[342739489,1732090340023,-642.24,0.00059726,30]
[342739490,1732090340033,-150.0,0.00059726,120]
[342739491,1732090340043,-1301.4,0.00059726,120]
[342739492,1732090340058,-505.72,0.00059726,120]
[342739493,1732090340068,-500.0,0.00059726,120]
[342739494,1732090340077,-206.18501247,0.00059726,120]
[342739495,1732090340087,-946.93,0.00059726,120]
[342739496,1732090340096,-667.95,0.00059726,120]
[342739497,1732090340106,-516.28667148,0.00059726,120]
[342739498,1732090340115,-500.0,0.00059726,120]
[342739499,1732090340124,-500.0,0.0005975,120]
[342739500,1732090340133,-1200.0,0.0005975,120]
[342739501,1732090340142,-500.0,0.00059753,120]
[342739502,1732090340151,-500.0,0.00059753,120]
[342739503,1732090340160,-974.76029594,0.00059753,120]
[342739504,1732090340170,-500.0,0.00059753,120]
[342739505,1732090340179,-1523.0,0.00059753,120]
[342739506,1732090340190,-238.23178593,0.00059753,120]
[342739507,1732090340199,-500.0,0.00059781,120]
[342739508,1732090340208,-500.0,0.00059781,120]
[342739509,1732090340218,-500.0,0.00059781,120]
[342739510,1732090340227,-1523.0,0.00059781,120]
[342739511,1732090340236,-500.0,0.00059808,120]
[342739512,1732090340246,-500.0,0.00059808,120]
[342739513,1732090340255,-500.0,0.00059808,120]
[342739514,1732090340265,-1523.0,0.00059808,120]
[342739515,1732090340274,-500.0,0.00059836,120]
[342739516,1732090340283,-500.0,0.00059836,120]
[342739517,1732090340292,-500.0,0.00059836,120]
[342739518,1732090340309,-1523.0,0.00059836,120]
[342739519,1732090340319,-150.52,0.00059862,120]
[342739520,1732090340328,-500.0,0.00059863,120]
[342739521,1732090340337,-500.0,0.00059863,120]
[342739522,1732090340352,-500.0,0.00059863,120]
[342739523,1732090340362,-1523.0,0.00059863,120]
[342739524,1732090340371,-500.0,0.0005989,120]
[342739525,1732090340382,-500.0,0.0005989,120]
[342739526,1732090340391,-500.0,0.0005989,120]
[342739527,1732090340400,-1523.0,0.0005989,120]
[342739528,1732090340410,-291.95171253,0.000599,39]
[342739529,1732090340419,-297.29434145,0.000599,120]
[342739530,1732090340428,-297.29434143,0.000599,120]
[342739531,1732090340438,-297.29434143,0.000599,120]
[342739532,1732090340447,-297.29434143,0.000599,120]
[342739533,1732090340456,-297.29434143,0.000599,120]
[342739534,1732090340465,-297.29434143,0.000599,120]
[342739535,1732090340475,-297.29434143,0.000599,120]
[342739536,1732090340485,-297.29434143,0.000599,120]
[342739537,1732090340496,-297.29434143,0.000599,120]
[342739538,1732090340505,-297.29434143,0.000599,120]
[342739539,1732090340514,-500.0,0.00059918,120]
[342739540,1732090340523,-500.0,0.00059918,120]
[342739541,1732090340532,-843.89429527,0.00059918,120]
[342739542,1732090340541,-1523.0,0.00059918,120]
[342739543,1732090340555,-500.0,0.00059945,120]
[342739544,1732090340564,-500.0,0.00059945,120]
[342739545,1732090340574,-1523.0,0.00059945,120]
[342739546,1732090340583,-500.0,0.00059973,120]
[342739547,1732090340592,-500.0,0.00059973,120]
[342739548,1732090340601,-1523.0,0.00059973,120]
[342739549,1732090340610,-251.84582276,0.00059999,120]
[342739550,1732090340619,-583.63,0.00059999,120]
[342739551,1732090340628,-1068.5,0.00059999,120]
[342739552,1732090340637,-598.94,0.00059999,120]
[342739553,1732090340647,-1682.29,0.00059999,120]
[342739554,1732090340655,-356.25486487,0.00059999,120]
[342739555,1732090340664,-12247.35,0.00059999,120]
[342739556,1732090340673,-1420.1,0.00059999,120]
[342739557,1732090340683,-500.0,0.00059999,120]
[342739558,1732090340692,-1292.82,0.00059999,120]